bitfinex-derivatives/quotes_ETHF0:USTF0_20250612
["timestamp","ask_amount","ask_price","bid_price","bid_amount"]
[1749753244269,0.72942,2741.2,2741.1,3.2078]
[1749753244462,0.72945,2741.1,2741.0,0.72946]
[1749753244663,0.7295,2740.9,2740.8,3.94278256]
[1749753244865,0.72947,2741.1,2741.0,0.72945]
[1749753245263,0.72947,2741.1,2740.8,3.21327256]
[1749753245264,0.72943,2741.2,2741.1,0.72942]
[1749753245766,3.08434,2741.9,2741.1,3.2078]
[1749753245972,1.2034,2741.8,2741.4,3.2078]
[1749753246264,0.72931,2741.7,2741.6,0.7293]
[1749753247170,0.72931,2741.7,2741.6,0.72931]
[1749753247467,1.2612,2741.9,2741.3,0.72939]
[1749753247468,0.72937,2741.4,2741.3,0.72939]
[1749753247658,0.72942,2741.2,2741.1,6.78668689]
[1749753247866,0.72945,2741.1,2741.0,7.28647]
[1749753248074,0.7295,2740.9,2740.8,0.00547256]
[1749753249966,0.7295,2740.9,2740.8,0.73500256]
[1749753250463,0.7295,2740.9,2740.8,0.00547256]
[1749753251558,3.9373,2740.9,2740.8,0.00547256]
[1749753252467,0.72958,2740.6,2740.5,3.2078]
[1749753252766,0.72966,2740.3,2740.2,6.78695689]
[1749753253072,6.558,2740.3,2739.9,2.84946689]
[1749753253266,6.558,2740.3,2739.6,2.84946689]
[1749753253267,0.72982,2739.7,2739.6,2.84946689]
[1749753253566,1.82436,2740.0,2739.5,6.78712689]
[1749753253567,0.72985,2739.6,2739.5,6.78712689]
[1749753253865,0.72985,2739.6,2739.5,6.05726689]
[1749753254065,0.72985,2739.6,2739.5,3.2078]
[1749753254267,0.72987,2739.5,2739.4,0.00547256]
[1749753254469,1.99837,2739.5,2739.4,0.00547256]
[1749753256471,1.99837,2739.5,2739.4,0.73537256]
[1749753256668,0.00543889,2739.9,2739.8,0.72979]
[1749753257265,0.00543889,2739.9,2739.8,5.72979]
[1749753257574,0.00543889,2739.9,2739.8,7.28879]
[1749753257759,0.00543889,2739.9,2739.8,0.72979]
[1749753258161,0.73520889,2739.9,2739.8,0.72979]
[1749753258372,0.72979,2739.8,2739.7,10.51361]
[1749753258672,0.72979,2739.8,2739.7,7.30581]
[1749753259066,0.72985,2739.7,2739.5,0.6282]
[1749753259372,0.72981,2739.8,2739.7,0.7298]
[1749753259675,0.72985,2739.7,2739.6,0.72984]
[1749753259874,0.72985,2739.6,2739.5,1.35806]
[1749753260666,0.72984,2739.7,2739.6,0.72981]
[1749753260868,1.25923889,2739.9,2739.5,1.82469]
[1749753261168,0.00543889,2739.9,2739.8,0.72979]
[1749753261368,0.73520889,2739.9,2739.8,0.72979]
[1749753261870,0.72984,2739.7,2739.6,0.72985]
[1749753262078,1.82452,2739.8,2739.4,9.78927256]
[1749753262368,0.73523889,2739.9,2739.8,0.72979]
[1749753262566,0.00543889,2739.9,2739.8,0.72979]
[1749753262975,0.73520889,2739.9,2739.8,0.72979]
[1749753263273,0.00543889,2739.9,2739.8,0.72979]
[1749753263774,0.72983,2739.8,2739.7,0.72979]
[1749753264275,0.00543889,2739.9,2739.8,0.72979]
[1749753266377,0.73520889,2739.9,2739.8,0.72979]
[1749753266577,0.00543889,2739.9,2739.8,0.72979]
[1749753267470,0.00543889,2739.9,2739.7,3.2078]
[1749753267471,0.72979,2739.8,2739.7,3.2078]
[1749753267679,0.72985,2739.6,2739.5,6.577]
[1749753267973,0.72985,2739.6,2739.5,7.30685]
[1749753268666,0.72981,2739.8,2739.7,0.72979]
[1749753268872,0.00543889,2739.9,2739.8,0.72979]
[1749753269074,0.73520889,2739.9,2739.8,0.72979]
[1749753269276,0.72979,2739.8,2739.7,3.2078]
[1749753269474,1.96869,2739.8,2739.7,3.2078]
[1749753271474,1.2389,2739.8,2739.7,3.2078]
[1749753271676,0.00543889,2739.9,2739.8,0.72977]
[1749753272173,0.00543889,2739.9,2739.7,3.93758]
[1749753272375,0.73519889,2739.9,2739.8,0.72977]
[1749753272576,0.00543889,2739.9,2739.8,0.72977]
[1749753272974,0.00543889,2739.9,2739.8,1.92387]
[1749753273174,0.00543889,2739.9,2739.8,8.50087]
[1749753273374,0.00543889,2739.9,2739.8,7.30677]
[1749753273977,0.00543889,2739.9,2739.8,10.15623689]
[1749753274178,0.00543889,2739.9,2739.8,12.09203689]
[1749753275174,0.00543889,2739.9,2739.8,9.24257]
[1749753277305,0.00543889,2739.9,2739.8,1.35648]
[1749753277473,0.00543889,2739.9,2739.8,7.93348]
[1749753278273,0.73518889,2739.9,2739.8,7.2037]
[1749753278478,0.00543889,2739.9,2739.8,0.6267]
[1749753278686,0.73518889,2739.9,2739.8,0.6267]
[1749753278881,0.00543889,2739.9,2739.8,1.35648]
[1749753281086,0.00543889,2739.9,2739.8,0.6267]
[1749753281387,0.00543889,2739.9,2739.7,14.16098099]
[1749753281685,0.72978,2739.8,2739.7,13.43119099]
[1749753282383,0.73519889,2739.9,2739.7,14.16097099]
[1749753282586,0.00543889,2739.9,2739.8,0.72978]
[1749753282982,0.00543889,2739.9,2739.8,4.37617099]
[1749753284786,0.44133889,2739.9,2739.8,4.37617099]
[1749753286383,0.44133889,2739.9,2739.8,0.72978]
[1749753288084,0.72961,2740.4,2740.2,0.72965]
[1749753288289,0.72961,2740.4,2740.3,2.91394013]
[1749753288486,2.60241,2740.5,2740.3,3.64357013]
[1749753288688,1.8728,2740.5,2740.4,3.64355013]
[1749753288887,0.6203,2740.5,2740.4,3.64355013]
[1749753289087,0.6203,2740.5,2740.4,0.72961]
[1749753289582,1.32668,2740.6,2740.5,0.72959]
[1749753289785,0.6466,2741.0,2740.5,11.86837516]
[1749753289987,1.37606,2741.0,2740.8,3.64237438]
[1749753290291,2.56676,2741.0,2740.8,3.64237438]
[1749753290487,0.72948,2740.9,2740.8,2.91287438]
[1749753291188,0.72948,2740.9,2740.5,3.64242516]
[1749753291189,0.72951,2740.8,2740.7,2.91287438]
[1749753291393,1.92021,2740.8,2740.7,2.91287438]
[1749753292096,0.6466,2741.0,2740.8,0.7295]
[1749753292395,1.8757,2741.3,2740.9,3.2078]
[1749753292596,0.6416,2741.3,2741.2,0.7294]
[1749753292890,3.2078,2741.5,2741.2,0.7294]
[1749753292891,3.93712,2741.5,2741.2,6.402]
[1749753293091,3.93714,2741.5,2741.3,2.90938536]
[1749753293395,3.93714,2741.5,2741.4,2.90938536]
[1749753293595,1.82212,2743.3,2741.4,30.2758]
[1749753293897,1.82231,2743.0,2742.6,2.90556547]
[1749753294094,0.72903,2742.6,2742.5,0.00547256]
[1749753294296,0.72919,2742.0,2741.9,6.11336547]
[1749753294589,0.72919,2742.0,2741.9,3.2078]
[1749753295992,5.72919,2742.0,2741.9,3.2078]
[1749753296186,0.72924,2741.8,2741.7,0.00547256]
[1749753296899,5.72924,2741.8,2741.7,0.00547256]
[1749753297701,7.00384,2741.8,2741.7,0.00547256]
[1749753299508,0.72935,2741.4,2741.3,3.2078]
[1749753301003,1.99375,2741.4,2741.3,3.2078]
[1749753302612,2.61985,2741.4,2741.3,3.2078]
[1749753304006,0.72935,2741.4,2741.3,3.2078]
[1749753307218,1.95525,2741.4,2741.3,3.2078]
[1749753308109,0.7294,2741.2,2741.1,0.00547256]
[1749753309712,0.00547256,2741.4,2741.1,0.00547256]
[1749753309911,0.73484256,2741.4,2741.3,3.2078]
[1749753310217,0.00547256,2741.4,2741.3,3.93717]
[1749753311112,0.00547256,2741.4,2741.3,8.14893547]
[1749753311306,0.72927,2741.7,2741.3,18.81956547]
[1749753311514,0.72927,2741.7,2741.6,3.2078]
[1749753315621,0.00547256,2741.9,2741.6,3.2078]
[1749753315924,0.72927,2741.7,2741.6,3.2078]
[1749753320322,1.95927,2741.7,2741.6,3.2078]
[1749753321318,2.58167,2741.7,2741.6,3.2078]
[1749753321920,1.82327,2741.6,2741.2,2.90556547]
[1749753322122,0.7294,2741.2,2741.1,3.21327256]
[1749753322421,0.7294,2741.2,2741.1,6.12139605]
[1749753324021,0.6224,2741.7,2741.1,3.21327256]
[1749753324220,0.72928,2741.7,2741.6,0.72928]
[1749753324526,0.72925,2741.8,2741.7,0.72925]
[1749753325221,0.00547256,2741.9,2741.8,0.72924]
[1749753325420,3.2078,2742.2,2742.1,0.72916]
[1749753325620,3.2078,2742.2,2741.8,4.87412516]
[1749753325822,3.93694,2742.2,2742.0,0.72917]
[1749753326029,3.2078,2742.2,2742.1,1.96086]
[1749753326329,3.93693,2742.2,2742.1,1.2317]
[1749753326525,0.72916,2742.1,2742.0,0.6427]
[1749753326724,0.72924,2741.8,2741.7,6.85022516]
[1749753327527,0.72924,2741.8,2741.7,3.2078]
[1749753327825,0.72923,2741.9,2741.7,3.93705]
[1749753328023,3.2078,2742.2,2741.7,8.08192516]
[1749753328328,0.72916,2742.1,2742.0,2.90705864]
[1749753330526,0.72919,2742.0,2741.9,2.90705864]
[1749753331222,1.82295,2742.1,2741.7,3.2078]
[1749753331426,0.72924,2741.8,2741.7,3.2078]
[1749753331722,3.03625,2742.1,2741.6,4.25432516]
[1749753331723,3.03623,2742.1,2741.6,4.98361516]
[1749753331929,0.72919,2742.0,2741.9,2.9062388]
[1749753334526,0.72924,2741.8,2741.7,2.9062388]
[1749753334731,0.72927,2741.7,2741.6,2.9062388]
[1749753337531,3.10256,2741.9,2741.4,10.33614]
[1749753337532,0.72932,2741.5,2741.4,10.33614]
[1749753337832,0.72932,2741.5,2741.4,9.6068]
[1749753338335,0.72932,2741.5,2741.4,10.33614]
[1749753338627,0.72932,2741.5,2741.4,13.97856516]
[1749753338833,0.72923,2741.9,2741.8,0.72923]
[1749753339336,0.7292,2742.0,2741.9,0.7292]
[1749753339932,0.72922,2741.9,2741.8,0.72922]
[1749753340133,0.72924,2741.8,2741.7,9.52437284]
[1749753340334,0.72923,2741.9,2741.8,0.72923]
[1749753340534,0.72924,2741.8,2741.7,8.22587284]
[1749753340834,0.72923,2741.9,2741.8,0.72923]
[1749753341333,2.46278,2742.3,2741.7,7.49662284]
[1749753341533,0.72916,2742.1,2742.0,0.72917]
[1749753342129,1.2665,2742.6,2741.8,4.89182284]
[1749753342337,3.832,2742.7,2742.3,2.90924608]
[1749753342538,0.72904,2742.6,2742.4,2.90924608]
[1749753342727,3.2078,2742.7,2742.5,3.63829608]
[1749753342928,0.72903,2742.6,2742.5,3.63829608]
[1749753343129,3.2078,2742.7,2742.3,3.63512284]
[1749753343327,3.2078,2742.7,2742.6,2.90816982]
[1749753343328,3.9368,2742.7,2742.6,2.90816982]
[1749753343930,0.729,2742.7,2742.6,2.90816982]
[1749753344129,0.72897,2742.8,2742.7,0.72899]
[1749753344337,3.2078,2743.0,2742.9,0.72895]
[1749753344641,0.72896,2742.9,2742.8,2.90508537]
[1749753344829,0.72897,2742.8,2742.7,1.31929]
[1749753345238,1.2032,2743.2,2742.7,0.5903]
[1749753345432,0.72892,2743.0,2742.9,0.72893]
[1749753345634,0.72894,2742.9,2742.8,2.90485602]
[1749753346537,0.72897,2742.8,2742.7,3.63384602]
[1749753346839,0.72897,2742.8,2742.7,2.90485602]
[1749753347541,0.729,2742.7,2742.6,12.51165602]
[1749753347741,0.729,2742.7,2742.6,13.24067602]
[1749753347942,0.729,2742.7,2742.6,12.51165602]
[1749753348440,0.729,2742.7,2742.6,13.24065602]
[1749753348641,0.729,2742.7,2742.6,6.84165602]
[1749753350042,0.729,2742.7,2742.6,6.11265602]
[1749753350246,0.729,2742.7,2742.6,6.84167602]
[1749753351640,1.8969,2743.0,2742.6,6.11265602]
[1749753352041,0.729,2742.7,2742.6,6.84165602]
[1749753352538,1.8969,2743.0,2742.6,3.2078]
[1749753352740,0.72898,2742.8,2742.7,3.62928042]
[1749753353242,0.72888,2743.2,2743.1,0.72887]
[1749753353543,0.72888,2743.2,2742.8,2.90031042]
[1749753353544,0.72894,2742.9,2742.8,2.90031042]
[1749753353839,0.72897,2742.8,2742.7,7.10898]
[1749753354045,0.72897,2742.9,2742.8,0.72895]
[1749753354247,0.72897,2742.9,2742.8,2.9008906]
[1749753355039,1.82226,2743.1,2742.6,3.9368]
[1749753355040,0.72897,2742.8,2742.7,2.9008906]
[1749753355247,2.00617,2742.8,2742.7,2.9008906]
[1749753356546,0.729,2742.7,2742.6,3.9368]
[1749753357350,0.729,2742.7,2742.6,6.10822418]
[1749753357649,0.729,2742.7,2742.6,6.83724418]
[1749753357948,0.729,2742.7,2742.6,6.10822418]
[1749753359037,0.729,2742.7,2742.6,6.83724418]
[1749753359241,0.729,2742.7,2742.6,6.10822418]
[1749753359544,0.729,2742.7,2742.6,2.90042418]
[1749753359748,0.72902,2742.6,2742.5,0.00547256]
[1749753359951,1.94052,2742.6,2742.5,0.00547256]
[1749753360752,2.11943663,2744.6,2742.5,37.91427256]
[1749753360944,0.72876,2743.6,2743.5,3.2078]
[1749753361243,6.38,2743.9,2743.5,3.2078]
[1749753361439,0.5953,2743.8,2743.5,3.2078]
[1749753361643,0.72876,2743.6,2743.5,3.2078]
[1749753361846,0.5953,2743.8,2743.5,3.93657]
[1749753362051,7.70402,2743.8,2743.5,3.2078]
[1749753362244,1.32402,2743.8,2743.5,3.2078]
[1749753362446,7.70402,2743.8,2743.5,3.2078]
[1749753362946,0.72856,2744.4,2743.6,1.8219]
[1749753363146,3.2078,2744.7,2744.2,3.2078]
[1749753363343,0.72857,2744.4,2744.2,3.21327256]
[1749753363546,1.36834,2744.5,2744.2,3.94187256]
[1749753363747,0.72855,2744.4,2744.2,3.21327256]
[1749753364052,0.6398,2744.5,2744.2,3.94187256]
[1749753364252,0.6398,2744.5,2744.2,3.21327256]
[1749753364749,0.6398,2744.5,2744.2,3.94185256]
[1749753364949,0.6398,2744.5,2744.4,0.72855]
[1749753365154,0.6398,2744.5,2744.3,0.72856]
[1749753365347,1.36834,2744.5,2744.3,0.72856]
[1749753365544,9.5868,2745.0,2744.4,0.72852]
[1749753365748,0.72847,2744.7,2744.5,3.93631]
[1749753365954,0.72849,2744.6,2744.5,3.2078]
[1749753366649,3.8058,2745.0,2744.5,3.2078]
[1749753366953,0.72849,2744.6,2744.5,3.2078]
[1749753367849,3.10208,2744.9,2744.2,0.00547256]
[1749753367850,0.72857,2744.3,2744.2,0.00547256]
[1749753368663,1.82157,2744.1,2743.6,3.2078]
[1749753368855,0.72881,2743.4,2743.3,3.2078]
[1749753369459,0.72881,2743.4,2743.0,3.2078]
[1749753369460,0.72889,2743.1,2743.0,3.2078]
[1749753369652,0.72895,2742.9,2742.8,0.00547256]
[1749753371959,2.01395,2742.9,2742.8,0.00547256]
[1749753372463,2.66075,2742.9,2742.8,0.00547256]
[1749753372766,2.66075,2742.9,2742.1,6.10822418]
[1749753372767,0.72913,2742.2,2742.1,6.10822418]
[1749753373059,3.2078,2742.3,2741.9,3.62963418]
[1749753373262,0.72918,2742.0,2741.9,2.90042418]
[1749753373462,0.72921,2741.9,2741.8,2.90042418]
[1749753373663,0.72924,2741.8,2741.7,6.10822418]
[1749753373867,0.72924,2741.8,2741.7,3.93706]
[1749753374365,0.72924,2741.8,2741.7,3.93705]
[1749753374566,0.72924,2741.8,2741.7,3.2078]
[1749753374965,0.72926,2741.7,2741.6,0.72928]
[1749753375369,0.72926,2741.7,2741.5,3.63519674]
[1749753375567,0.72926,2741.7,2741.6,0.72929]
[1749753375767,0.72926,2741.7,2741.5,0.73477256]
[1749753375974,0.72926,2741.8,2741.5,0.00547256]
[1749753376263,3.2078,2742.0,2741.5,0.00547256]
[1749753376668,3.2078,2742.0,2741.6,0.72929]
[1749753376870,0.72929,2741.6,2741.5,0.00547256]
[1749753378770,0.72914,2742.2,2741.6,0.72929]
[1749753379063,3.2078,2742.6,2741.9,3.2078]
[1749753379261,0.72912,2742.3,2742.2,0.72913]
[1749753379464,0.7291,2742.4,2742.3,0.7291]
[1749753379661,3.2078,2742.6,2742.0,1.2551]
[1749753379855,0.72909,2742.4,2742.3,0.72909]
[1749753380060,4.4186,2742.6,2741.9,5.0308]
[1749753380261,0.72906,2742.5,2742.4,0.72905]
[1749753380668,0.72911,2742.4,2742.3,0.7291]
[1749753382972,4.4186,2742.6,2742.0,1.2728]
[1749753382973,0.72915,2742.2,2742.1,0.72914]
[1749753383667,0.72913,2742.3,2742.2,0.72912]
[1749753384465,0.7291,2742.4,2742.3,0.7291]
[1749753384662,4.4186,2742.6,2742.3,0.7291]
[1749753384867,0.94031227,2743.0,2742.0,3.09575]
[1749753384868,3.21327256,2743.1,2742.6,1.82257]
[1749753385069,0.00547256,2743.1,2743.0,0.72892]
[1749753385367,0.00547256,2743.1,2742.9,0.72892]
[1749753385368,0.72893,2743.0,2742.9,0.72892]
[1749753385871,0.73437256,2743.1,2743.0,0.72892]
[1749753386865,0.00547256,2743.1,2743.0,0.72892]
[1749753387960,0.73436256,2743.1,2743.0,0.72892]
[1749753388172,0.00547256,2743.1,2743.0,0.72892]
[1749753389270,0.00547256,2743.1,2743.0,5.72892]
[1749753389466,3.2078,2743.8,2743.4,1.82201]
[1749753389668,3.2078,2744.5,2743.7,0.72873]
[1749753389864,0.72858,2744.3,2743.9,5.02948]
[1749753390165,0.72859,2744.3,2744.2,0.72859]
[1749753390362,0.72861,2744.2,2744.1,0.72861]
[1749753390563,0.72863,2744.1,2744.0,0.00547256]
[1749753390871,3.93643,2744.1,2744.0,0.00547256]
[1749753391075,5.72863,2744.1,2744.0,0.00547256]
[1749753391469,8.93643,2744.1,2744.0,0.00547256]
[1749753391764,8.93643,2744.1,2743.3,3.2078]
[1749753391765,0.72881,2743.4,2743.3,3.2078]
[1749753392773,0.72895,2742.9,2742.8,3.93675]
[1749753393275,0.72895,2742.9,2742.8,3.2078]
[1749753393771,0.72895,2742.9,2742.6,0.00547256]
[1749753393772,0.729,2742.7,2742.6,0.00547256]
[1749753394476,2.0279,2742.7,2742.6,0.00547256]
[1749753394876,13.4809,2742.7,2742.6,2.56e-06]
[1749753395069,0.72921,2741.9,2741.8,3.2078]
[1749753395372,0.72929,2741.6,2741.5,3.2078]
[1749753396079,0.72934,2741.4,2741.3,0.00547256]
[1749753400772,0.00547256,2741.6,2741.5,0.72932]
[1749753400980,0.00547256,2741.6,2741.5,3.93712]
[1749753401278,0.00547256,2741.6,2741.5,8.93712]
[1749753401485,0.00547256,2741.6,2741.5,10.18802]
[1749753402387,0.00547256,2741.6,2741.5,11.64302]
[1749753403678,0.00547256,2741.6,2741.5,5.18802]
[1749753403879,0.00547256,2741.6,2741.5,11.64302]
[1749753404279,0.73476256,2741.6,2741.5,9.6628]
[1749753404474,0.73476256,2741.6,2741.5,3.2078]
[1749753406082,0.73476256,2741.6,2741.5,3.93712]
[1749753406981,0.73476256,2741.6,2741.5,3.2078]
[1749753409691,0.73476256,2741.6,2741.5,3.93712]
[1749753410289,0.73476256,2741.6,2741.5,3.2078]
[1749753410491,0.73476256,2741.6,2741.5,3.93712]
[1749753410685,0.73476256,2741.6,2741.5,3.2078]
[1749753413790,0.84136256,2741.6,2741.5,3.2078]
[1749753415389,1.82342,2741.4,2740.2,5.04006168]
[1749753415591,3.2078,2740.5,2739.8,3.2078]
[1749753415790,3.2078,2740.9,2740.0,1.8243]
[1749753415989,0.72951,2740.8,2740.3,1.8241]
[1749753416196,1.82353,2741.2,2740.6,0.72955]
[1749753416388,0.72956,2740.6,2740.4,2.60569]
[1749753416696,0.72958,2740.5,2740.4,2.60569]
[1749753416898,0.72958,2740.5,2740.4,1.8761]
[1749753418190,0.72958,2740.5,2740.4,2.60571]
[1749753418389,0.72958,2740.5,2740.4,1.8761]
[1749753419399,0.72958,2740.5,2740.4,2.60571]
[1749753419990,0.72958,2740.5,2740.4,1.8761]
[1749753421298,0.72958,2740.5,2740.4,2.60571]
[1749753421491,0.72958,2740.5,2740.4,1.8761]
[1749753421694,2.11943663,2742.5,2740.4,1.8761]
[1749753421695,3.2078,2741.3,2740.6,1.8239]
[1749753421895,0.11207256,2741.6,2741.5,0.72932]
[1749753422393,0.632,2742.6,2741.5,0.72932]
[1749753422394,0.7291,2742.4,2742.3,0.72911]
[1749753422700,0.72919,2742.0,2741.9,7.1232]
[1749753422998,0.72917,2742.1,2742.0,0.72917]
[1749753423303,0.72919,2742.0,2741.9,6.394]
[1749753423596,0.72921,2741.9,2741.8,0.73470256]
[1749753423992,0.72917,2742.1,2742.0,0.72917]
[1749753424189,0.7292,2742.0,2741.9,0.7292]
[1749753424397,0.72921,2741.9,2741.8,0.73470256]
[1749753424790,0.72921,2741.9,2741.8,0.00547256]
[1749753429297,1.32271,2741.9,2741.8,0.00547256]
[1749753430206,3.93699,2742.1,2742.0,0.72919]
[1749753430408,0.72921,2741.9,2741.8,0.00547256]
[1749753431306,0.7292,2742.0,2741.8,0.00547256]
[1749753431504,0.72921,2741.9,2741.8,0.00547256]
[1749753431905,0.7292,2742.0,2741.8,0.00547256]
[1749753432108,0.7292,2742.0,2741.9,0.72918]
[1749753432307,0.72921,2741.9,2741.8,0.73469256]
[1749753433108,0.72921,2741.9,2741.8,0.00547256]
[1749753433408,0.72921,2741.9,2741.8,0.73471256]
[1749753433611,0.72921,2741.9,2741.8,2.03661256]
[1749753433908,0.72921,2742.0,2741.9,0.72918]
[1749753434407,0.72921,2741.9,2741.8,0.00547256]
[1749753434812,0.72921,2742.0,2741.9,0.72919]
[1749753435109,0.72921,2741.9,2741.8,0.73469256]
[1749753435504,0.7292,2742.0,2741.9,0.72918]
[1749753435700,0.7292,2742.0,2741.9,1.94808]
[1749753435906,0.7292,2742.0,2741.9,0.72921]
[1749753436404,0.00547256,2742.3,2742.2,0.72913]
[1749753436808,0.00547256,2742.3,2742.2,1.94803]
[1749753437109,0.00547256,2742.3,2742.2,4.8489095]
[1749753437307,0.00547256,2742.3,2742.2,6.94803]
[1749753437608,0.72901,2742.7,2742.6,0.729]
[1749753438006,0.72905,2742.5,2742.4,7.12206]
[1749753438203,0.72911,2742.3,2742.2,2.89644957]
[1749753438416,0.73455256,2742.5,2742.4,0.72906]
[1749753438908,0.72911,2742.4,2742.3,0.72909]
[1749753439413,0.00547256,2742.5,2742.4,0.72908]
[1749753439706,0.73452256,2742.5,2742.4,0.72908]
[1749753440307,0.72911,2742.4,2742.3,0.72909]
[1749753440611,0.7291,2742.4,2742.3,0.72908]
[1749753441710,0.72913,2742.3,2742.2,0.72911]
[1749753441908,0.00547256,2742.5,2742.3,0.72909]
[1749753441909,0.72911,2742.4,2742.3,0.72909]
[1749753443009,0.00547256,2742.5,2742.4,0.72908]
[1749753443010,0.73454256,2742.5,2742.4,0.72908]
[1749753443314,0.73452256,2742.5,2742.4,0.72908]
[1749753443907,0.00547256,2742.5,2742.4,0.72908]
[1749753444207,0.72891,2743.1,2743.0,0.72892]
[1749753444601,5.03,2743.2,2742.7,9.5938]
[1749753444803,0.72894,2743.0,2742.9,0.72891]
[1749753445403,0.72897,2742.9,2742.8,0.72896]
[1749753446312,0.72897,2742.8,2742.7,9.5928]
[1749753446707,0.72897,2742.8,2742.7,6.385]
[1749753447012,0.72902,2742.7,2742.6,0.729]
[1749753447202,0.72906,2742.6,2742.5,0.72904]
[1749753448212,0.72902,2742.7,2742.6,0.729]
[1749753448907,1.2926,2742.8,2742.3,10.8711]
[1749753449102,5.03031,2742.7,2742.3,6.385]
[1749753449308,0.72911,2742.4,2742.3,7.11408]
[1749753449617,0.72911,2742.4,2742.3,6.385]
[1749753449913,0.72911,2742.4,2742.3,7.11411]
[1749753450514,0.72911,2742.4,2742.3,6.385]
[1749753450712,1.9113,2742.6,2742.0,10.2037]
[1749753450910,0.72921,2741.9,2741.8,0.73469256]
[1749753451116,0.72919,2742.0,2741.8,0.00547256]
[1749753451417,1.82277,2742.3,2741.8,0.00547256]
[1749753451418,0.72921,2741.9,2741.8,0.73469256]
[1749753451620,0.72921,2741.9,2741.8,0.00547256]
[1749753451919,0.7295,2740.8,2740.7,3.62504207]
[1749753452212,0.72956,2740.6,2740.5,3.2078]
[1749753452614,0.72964,2740.3,2740.2,3.2078]
[1749753453520,0.72969,2740.1,2740.0,0.00547256]
[1749753453719,8.93749,2740.1,2740.0,0.00547256]
[1749753454023,3.93749,2740.1,2740.0,0.00547256]
[1749753454221,3.2078,2740.4,2740.0,0.00547256]
[1749753454435,0.00547256,2740.5,2740.4,0.72961]
[1749753455035,0.00547256,2740.5,2740.1,10.8747]
[1749753455234,0.00547256,2740.5,2740.1,3.2078]
[1749753455434,0.72966,2740.2,2740.1,3.2078]
[1749753455627,0.72969,2740.1,2740.0,0.00547256]
[1749753458029,5.72969,2740.1,2740.0,0.00547256]
[1749753458229,0.72982,2739.6,2739.5,3.2078]
[1749753458826,0.1827,2740.2,2739.9,0.72974]
[1749753459133,0.72974,2739.9,2739.8,0.00547256]
[1749753459332,0.72972,2740.0,2739.9,0.72974]
[1749753459921,1.2534,2740.1,2739.8,0.00547256]
[1749753460126,0.72974,2739.9,2739.8,0.00547256]
[1749753460529,1.9831,2740.1,2740.0,0.72972]
[1749753460936,0.72972,2740.0,2739.9,0.72973]
[1749753462331,0.1827,2740.2,2740.1,0.72969]
[1749753462635,0.1827,2740.2,2740.1,3.93749]
[1749753463032,0.1827,2740.2,2740.1,5.14629]
[1749753463328,0.00547256,2740.5,2740.4,0.72961]
[1749753463635,0.72949,2740.9,2740.4,0.72961]
[1749753463636,0.72949,2740.9,2740.8,0.72949]
[1749753464234,3.8356,2741.0,2740.4,3.2078]
[1749753464529,0.72955,2740.7,2740.6,0.72954]
[1749753464731,0.72951,2740.8,2740.7,0.72951]
[1749753464932,0.72954,2740.7,2740.4,3.2078]
[1749753465127,0.72954,2740.7,2740.6,0.72955]
[1749753465836,3.84107256,2741.0,2740.4,3.2078]
[1749753466037,5.06627256,2741.0,2740.4,3.2078]
[1749753466335,0.72954,2740.7,2740.6,0.72954]
[1749753466630,0.00547256,2741.0,2740.9,0.72948]
[1749753467138,0.00547256,2741.0,2740.9,5.72948]
[1749753467335,0.00547256,2741.0,2740.9,12.11948]
[1749753467834,1.2798,2742.1,2741.8,0.72922]
[1749753468132,0.72921,2741.9,2741.8,0.72921]
[1749753468334,1.2798,2742.1,2741.7,6.39]
[1749753468532,0.72922,2741.9,2741.8,0.72923]
[1749753468938,0.72922,2741.9,2741.8,0.72922]
[1749753469131,2.48487256,2742.1,2741.7,6.39]
[1749753469328,0.72923,2741.9,2741.8,0.72923]
[1749753469536,0.72927,2741.7,2741.6,0.00547256]
[1749753471431,0.63207256,2742.1,2741.6,0.00547256]
[1749753471629,0.73463256,2742.1,2742.0,0.72919]
[1749753471939,0.00547256,2742.1,2742.0,0.72919]
[1749753473340,0.73463256,2742.1,2742.0,0.72919]
[1749753473531,0.00547256,2742.1,2742.0,0.72919]
[1749753474742,0.73463256,2742.1,2742.0,0.72919]
[1749753475236,0.00547256,2742.1,2742.0,0.72919]
[1749753475540,0.73463256,2742.1,2742.0,0.72919]
[1749753475843,0.72926,2741.7,2741.6,9.59927256]
[1749753476734,0.72926,2741.7,2741.6,3.94256256]
[1749753476940,3.2078,2742.0,2741.6,0.00547256]
[1749753477142,0.72926,2741.7,2741.6,0.73475256]
[1749753477542,0.72926,2741.8,2741.7,0.72924]
[1749753477843,0.72926,2741.7,2741.6,0.73475256]
[1749753478140,0.72926,2741.8,2741.7,0.72924]
[1749753478941,0.72926,2741.7,2741.6,0.73475256]
[1749753479344,0.72926,2741.8,2741.7,0.72923]
[1749753480239,0.72926,2741.8,2741.6,0.00547256]
[1749753480240,0.72926,2741.7,2741.6,0.00547256]
[1749753480447,0.72934,2741.4,2741.3,3.2078]
[1749753482238,0.7294,2741.2,2741.1,0.00547256]
[1749753482638,0.7294,2741.2,2741.1,0.73489256]
[1749753482837,3.2078,2742.0,2741.3,3.64688]
[1749753483035,2.4904,2742.3,2742.0,0.72918]
[1749753483344,3.4219,2742.5,2742.0,0.72918]
[1749753483537,3.4219,2742.5,2741.9,3.2078]
[1749753483538,0.72921,2742.0,2741.9,0.72919]
[1749753483735,0.72926,2741.7,2741.6,8.29957]
[1749753483936,0.72926,2741.7,2741.6,7.11529]
[1749753484140,0.72926,2741.7,2741.6,6.386]
[1749753484945,0.72926,2741.7,2741.6,7.11529]
[1749753485240,1.23647256,2742.1,2741.6,6.386]
[1749753486649,0.00547256,2742.1,2741.6,6.386]
[1749753486941,0.00547256,2742.1,2741.7,1.2309]
[1749753487135,0.00547256,2742.1,2741.8,3.2078]